Cogmind - Beta 13 @@@ ROGUE MODE // 2024.06.05 @ 12:57:52 Player: SovietPaperclip Result: Self-destructed Performance ------------- Evolutions (3) 1500 Regions Visited (8) 1600 Robots Destroyed (77) 385 Value Destroyed (1829) 1829 Prototype IDs (4) 80 Alien Tech Used (0) 0 Bonus (114) 114 TOTAL SCORE: 5508 Bonus ------- High Alert Combat Kills 40 Follower Combat Kills 74 Cogmind --------- Core Integrity 700/700 Matter 171/300 Energy 158/160 System Corruption 0% Temperature Cool (5) Movement Flying (28) Location -7/Factory Parts ------- > --- POWER (1) -------- Light Nuclear Core > --- PROPULSION (5) --- Improved Flight Unit Improved Flight Unit Improved Flight Unit Improved Flight Unit Xenon Bombardment Thruster > --- UTILITY (5) ------ Medium Storage Unit Structural Scanner Improved Sensor Array Improved Signal Interpreter Hacking Suite > --- WEAPON (2) ------- Plasma Cutter Heavy Mace > --- INVENTORY (10) --- High-capacity Matter Pod (0) ECM Suite Hacking Suite Hacking Suite Hacking Suite System Shield Long-range Tractor Beam Light EM Pulse Cannon Improved EM Pulse Cannon Missile Launcher Peak State ------------ > --- POWER ------------ Deuterium Engine > --- PROPULSION ------- Improved Flight Unit Improved Flight Unit Improved Flight Unit Improved Flight Unit Improved Flight Unit > --- UTILITY ---------- Medium Storage Unit Huge Storage Unit Improved Targeting Computer Light Armor Plating Hacking Suite > --- WEAPON ----------- Improved Assault Rifle Improved Assault Rifle > --- INVENTORY -------- Light Nuclear Core Improved Flight Unit High-capacity Matter Pod Structural Scanner Improved Sensor Array Improved Signal Interpreter ECM Suite Improved Propulsion Shielding Hacking Suite Hacking Suite Hacking Suite System Shield Long-range Tractor Beam Thief Drone Bay Light EM Pulse Cannon Missile Launcher Missile Launcher Plasma Cutter Heavy Mace [Rating: 37] Favorites ----------- Power Improved Ion Engine Engine Improved Ion Engine Power Core Light Nuclear Core Propulsion Light Treads Treads Light Treads Flight Unit Improved Flight Unit Utility Huge Storage Unit Device Heat Sink Storage Huge Storage Unit Processor Improved Targeting Computer Hackware Hacking Suite Protection Medium Armor Plating Weapon Improved Assault Rifle Energy Cannon Light EM Pulse Cannon Ballistic Gun Improved Assault Rifle Launcher Missile Launcher Special Weapon Plasma Cutter Impact Weapon Heavy Mace Build | -11 -10 -10 -9 -9 -9 -8 -8 -7 ------- Run | Yrd Mat Min Mat Min Exi Min Mat Fac Slots Evolved 6 | . . . 2 . . . 2 2 Power . | . . . . . . . . . Propulsion 3 | . . . 1 . . . 1 1 Utility 3 | . . . 1 . . . 1 1 Weapon . | . . . . . . . . . Parts Attached 72 | 6 5 4 13 8 1 . 21 14 Power 5 | 1 . 1 1 . . . 1 1 Engine 4 | 1 . 1 1 . . . 1 . Core 1 | . . . . . . . . 1 Reactor . | . . . . . . . . . Propulsion 24 | 2 . . 5 3 . . 8 6 Treads 17 | 2 . . 4 3 . . 8 . Leg . | . . . . . . . . . Wheel . | . . . . . . . . . Hover . | . . . . . . . . . Flight 7 | . . . 1 . . . . 6 Utility 22 | 1 3 3 5 2 . . 4 4 Device 9 | . 1 3 2 1 . . . 2 Storage 4 | 1 2 . . . . . . 1 Processor 3 | . . . 2 . . . . 1 Hackware 1 | . . . . . . . 1 . Protection 5 | . . . 1 1 . . 3 . Artifact . | . . . . . . . . . Weapon 21 | 2 2 . 2 3 1 . 8 3 Energy Gun . | . . . . . . . . . Energy Cannon 2 | . . . 1 . . . 1 . Ballistic Gun 12 | 2 2 . 1 2 1 . 4 . Ballistic Cannon . | . . . . . . . . . Launcher 5 | . . . . 1 . . 3 1 Special Weapon 1 | . . . . . . . . 1 Impact Weapon 1 | . . . . . . . . 1 Slashing Weapon . | . . . . . . . . . Piercing Weapon . | . . . . . . . . . Special Melee Weapon . | . . . . . . . . . Unidentified Prototypes 4 | . 1 1 1 . . . 1 . Parts Lost 3 | . . . 1 1 . . 1 . Power . | . . . . . . . . . Propulsion 2 | . . . 1 1 . . . . Utility 1 | . . . . . . . 1 . Weapon . | . . . . . . . . . Highest Loss Streak 1 | . . . 1 1 . . 1 . To Critical Strikes 1 | . . . 1 . . . . . Average Slot Usage (%) 99 | . 97 100 99 99 100 100 98 97 Engine 11 | . 14 14 11 11 11 11 9 . Treads 31 | . 28 28 32 32 33 33 35 1 Flight 1 | . . . . . . . . 36 Device 5 | . 12 14 8 . . . . 13 Storage 11 | . 14 14 11 11 11 11 9 7 Processor 7 | . . . 11 11 11 11 9 7 Hackware 1 | . . . . . . . 5 7 Protection 6 | . . . 2 11 11 11 12 . Ballistic Gun 21 | . 26 28 21 21 22 22 17 . Naked Turns . | . . . . . . . . . Heaviest Build 109 | 14 92 92 100 100 100 100 109 105 Greatest Support 90 | 40 40 40 63 63 63 63 90 80 Greatest Overweight (x) 4 | 1 2 2 1 2 1 1 1 4 Average Overweight (x) . | . . 2 1 1 1 1 1 . Largest Inventory Capacity 25 | 8 25 25 25 25 25 25 25 25 Average Capacity 23 | 7 16 25 25 25 25 25 25 12 Most Carried 25 | 2 16 18 25 25 25 25 25 25 Average Carried 21 | 1 10 16 23 24 25 25 24 11 Final Capacity 25 | 8 25 25 25 25 25 25 25 10 Final Carried 25 | 2 15 17 25 25 25 25 25 10 Class Distribution -------------------- 97% | Mutant Dominant Class ---------------- Mutant | -10/Materials Mutant | -10/Mines Mutant | -9/Materials Mutant | -9/Mines Mutant | -9/Exiles Mutant | -8/Mines Mutant | -8/Materials Scavenger-Scout | -7/Factory Resources | -11 -10 -10 -9 -9 -9 -8 -8 -7 ----------- Run | Yrd Mat Min Mat Min Exi Min Mat Fac Matter Collected 2064 | 230 201 140 638 301 6 . 348 200 Remotely 184 | . . . 116 68 . . . . Salvage Created 2250 | . 220 141 764 153 . . 972 . Parts 176 | . 31 15 62 18 . . 50 . Haulers Intercepted 5 | . 1 . 2 . . . 2 . Recyclers Shooed 2 | . 1 . . . . . 1 . Parts Field Recycled . | . . . . . . . . . Retrieved Matter . | . . . . . . . . . Parts Self-Destructed . | . . . . . . . . . Prevented . | . . . . . . . . . Kills | -11 -10 -10 -9 -9 -9 -8 -8 -7 ------- Run | Yrd Mat Min Mat Min Exi Min Mat Fac Combat Hostiles Destroyed 57 | . 7 5 15 10 . . 20 . Guns 48 | . 7 5 15 6 . . 15 . AOE 9 | . . . . 4 . . 5 . Classes Destroyed 11 | . 6 . 2 1 . . 2 . Worker 2 | . . . 2 . . . . . Builder 3 | . 1 . 1 . . . 1 . Hauler 5 | . 1 . 2 . . . 2 . Recycler 1 | . . . . . . . 1 . Operator 5 | . 1 . 3 . . . 1 . Watcher 4 | . 1 . 3 . . . . . Swarmer 25 | . 6 3 6 7 . . 3 . Grunt 25 | . 1 2 5 2 . . 15 . Brawler 1 | . . . . 1 . . . . Duelist 1 | . . . . . . . 1 . Sentry 5 | . . . 4 . . . 1 . Best Kill Streak 7 | . 4 3 3 7 . . 6 . Combat Bots Only 7 | . 3 3 3 7 . . 5 . Max Kills in Single Turn 3 | . 2 1 2 2 . . 3 . Gunslinging 1 | . 1 . 1 . . . . . Exploded 2 | . . . . 2 . . 2 . Melee . | . . . . . . . . . Uniques/NPCs Destroyed . | . . . . . . . . . Combat | -11 -10 -10 -9 -9 -9 -8 -8 -7 -------- Run | Yrd Mat Min Mat Min Exi Min Mat Fac Hostile Shots Fired 263 | . 47 22 79 30 . . 85 . Missed 71 | . 15 4 17 7 . . 28 . Damage Taken 2336 | . 299 166 694 324 . . 853 . Core 319 | . 52 27 112 88 . . 40 . Absorbed by Shields . | . . . . . . . . . Core Remaining (%) 77 | 100 . 68 . . . 50 92 . Volleys Fired 168 | . 29 11 74 11 . . 43 . Largest 2 | . 2 2 2 2 . . 2 . Hottest 59 | . 46 46 56 53 . . 59 . Shots Fired 332 | . 58 22 146 22 . . 84 . Gun 319 | . 58 22 144 18 . . 77 . Cannon 2 | . . . 2 . . . . . Launcher 11 | . . . . 4 . . 7 . Special . | . . . . . . . . . Kinetic 319 | . 58 22 144 18 . . 77 . Thermal . | . . . . . . . . . Explosive 11 | . . . . 4 . . 7 . Electromagnetic 2 | . . . 2 . . . . . Robot Hit Streak 35 | . 5 15 35 7 . . 21 . Robot Miss Streak 3 | . 3 1 2 1 . . 3 . Penetration Max . | . . . . . . . . . Secondary Targets 7 | . 2 . 1 . . . 4 . Max Gunslinging Chain 1 | . 1 . 1 . . . 1 . Shots Hit Robots 234 | . 32 18 111 15 . . 58 . Core Hits 109 | . 14 7 35 12 . . 41 . Critical Kills . | . . . . . . . . . Critical Parts Destroyed 2 | . . 1 . . . . 1 . Critical Strikes 2 | . . 1 . . . . 1 . Destroy 2 | . . 1 . . . . 1 . Melee Attacks 14 | . . . . . . . . 14 Impact 14 | . . . . . . . . 14 Slashing . | . . . . . . . . . Piercing . | . . . . . . . . . Sneak Attacks . | . . . . . . . . . Combat Hostiles . | . . . . . . . . . Follow-up Attacks . | . . . . . . . . . Damage Inflicted 4812 | . 415 297 1736 455 . . 1909 . Guns 3441 | . 415 297 1679 197 . . 853 . Cannons 57 | . . . 57 . . . . . Explosions 1314 | . . . . 258 . . 1056 . Melee . | . . . . . . . . . Ramming . | . . . . . . . . . Kinetic 3441 | . 415 297 1679 197 . . 853 . Thermal . | . . . . . . . . . Explosive 1314 | . . . . 258 . . 1056 . Electromagnetic 57 | . . . 57 . . . . . Impact . | . . . . . . . . . Slashing . | . . . . . . . . . Piercing . | . . . . . . . . . Highest Corruption . | . . . . . . . . . Average Corruption . | . . . . . . . . . Corruption Purged . | . . . . . . . . . Corruption Blocked . | . . . . . . . . . Overload Shots . | . . . . . . . . . Overflow Damage 110 | . . . 37 35 . . 38 . Projectiles 37 | . . . 37 . . . . . Explosions 73 | . . . . 35 . . 38 . Melee . | . . . . . . . . . Knockbacks . | . . . . . . . . . Impact . | . . . . . . . . . Kinetic . | . . . . . . . . . Secondary . | . . . . . . . . . Self-Inflicted Damage 121 | . . . . 107 . . 14 . Shots 5 | . . . . 4 . . 1 . Rammed . | . . . . . . . . . Targets Rammed . | . . . . . . . . . Kicked . | . . . . . . . . . Crushed . | . . . . . . . . . Highest Temperature 45 | . . . 2 . . . 45 . Average Temperature 10 | . . . 2 . . . 10 . Received Heat Transfer 771 | . 60 45 198 18 . . 450 . Siege Activations . | . . . . . . . . . Robots Corrupted . | . . . . . . . . . Combat Hostiles . | . . . . . . . . . Parts Fried 1 | . . . 1 . . . . . Impact Corruptions . | . . . . . . . . . Robots Melted . | . . . . . . . . . Combat Hostiles . | . . . . . . . . . Parts Melted . | . . . . . . . . . Heat Transferred . | . . . . . . . . . Parts Sabotaged . | . . . . . . . . . Parts Stolen . | . . . . . . . . . Parts Stripped . | . . . . . . . . . Power Chain Reactions . | . . . . . . . . . Alert | -11 -10 -10 -9 -9 -9 -8 -8 -7 ------- Run | Yrd Mat Min Mat Min Exi Min Mat Fac Peak Influence 521 | . 217 85 261 335 . . 521 210 Initial 185 | . . 15 . 81 . . . 185 Average 96 | . 59 11 116 137 . . 110 198 Maximum Alert Level 2 | . 1 . 1 1 . . 2 1 Low Security (%) 82 | 100 90 100 81 74 . 100 82 29 Level 1 14 | . 9 . 18 25 . . 7 70 Level 2 2 | . . . . . . . 10 . Level 3 . | . . . . . . . . . Level 4 . | . . . . . . . . . Level 5 . | . . . . . . . . . High Security . | . . . . . . . . . Max Security . | . . . . . . . . . Squads Dispatched 9 | . 1 . 3 . . . 4 1 Investigation 4 | . . . 1 . . . 2 1 Extermination . | . . . . . . . . . Reinforcement 5 | . 1 . 2 . . . 2 . Assault . | . . . . . . . . . Garrison . | . . . . . . . . . Intercept . | . . . . . . . . . Searches Triggered . | . . . . . . . . . Construction Impeded 1 | . . . . . . . 1 . Haulers Reinforced . | . . . . . . . . . Active Scanning Responses . | . . . . . . . . . Cargo Convoy Interrupts . | . . . . . . . . . Stealth | -11 -10 -10 -9 -9 -9 -8 -8 -7 --------- Run | Yrd Mat Min Mat Min Exi Min Mat Fac Distress Signals 5 | . 1 . 4 . . . . . Communications Jammed . | . . . . . . . . . Distress Signals . | . . . . . . . . . Times Spotted 80 | . 10 5 26 11 . . 28 . Peak Tracking Total 6 | . 3 3 4 5 . . 6 . Tactical Retreats 2 | . 1 . 1 . . . . . Traps | -11 -10 -10 -9 -9 -9 -8 -8 -7 ------- Run | Yrd Mat Min Mat Min Exi Min Mat Fac Traps Triggered 3 | . 1 . . . . . 1 1 Indirectly . | . . . . . . . . . Trap Hack Attempts . | . . . . . . . . . Triggered . | . . . . . . . . . Disarmed . | . . . . . . . . . Reprogrammed . | . . . . . . . . . Reused . | . . . . . . . . . Traps Extracted . | . . . . . . . . . Installed . | . . . . . . . . . Triggered . | . . . . . . . . . Machines | -11 -10 -10 -9 -9 -9 -8 -8 -7 ---------- Run | Yrd Mat Min Mat Min Exi Min Mat Fac Machines Disabled 4 | . 1 . . 1 . . 2 . Max in Single Turn 1 | . 1 . . 1 . . 1 . Garrison Access 2 | . . . . . . . 1 1 Machines Repaired . | . . . . . . . . . Machines Dismantled . | . . . . . . . . . Machines Sabotaged . | . . . . . . . . . Overloaded Fab Kills . | . . . . . . . . . Hacking | -11 -10 -10 -9 -9 -9 -8 -8 -7 --------- Run | Yrd Mat Min Mat Min Exi Min Mat Fac Machines Accessed 11 | . . 1 4 . 1 . 3 2 Terminals 7 | . . . 4 . . . 2 1 Fabricators . | . . . . . . . . . Repair Stations . | . . . . . . . . . Recycling Units . | . . . . . . . . . Scanalyzers . | . . . . . . . . . Garrison Access 2 | . . . . . . . 1 1 Total Hacks 20 | . . 1 9 . 1 . 5 4 Successful 10 | . . 1 4 . 1 . 2 2 Failed 10 | . . . 5 . . . 3 2 Catastrophic 1 | . . . 1 . . . . . Database Lockouts . | . . . . . . . . . Manual 10 | . . . 5 . . . 3 2 Terminals 15 | . . . 9 . . . 4 2 Fabricators . | . . . . . . . . . Repair Stations . | . . . . . . . . . Recycling Units . | . . . . . . . . . Scanalyzers . | . . . . . . . . . Garrison Access 3 | . . . . . . . 1 2 Terminal Hacks 6 | . . 1 3 . 1 . 1 . Record 2 | . . . 1 . 1 . . . Part Schematic 1 | . . . 1 . . . . . Open Door 1 | . . 1 . . . . . . Alert Level 1 | . . . . . . . 1 . Zone Layout 1 | . . . 1 . . . . . Fabricator Hacks . | . . . . . . . . . Repair Station Hacks . | . . . . . . . . . Recycling Unit Hacks . | . . . . . . . . . Scanalyzer . | . . . . . . . . . Garrison Access Hacks 2 | . . . . . . . 1 1 Seal Access 2 | . . . . . . . 1 1 Unauthorized Hacks 2 | . . . 1 . . . . 1 Terminals 2 | . . . 1 . . . . 1 Botnet 2 | . . . 1 . . . . 1 Fabricators . | . . . . . . . . . Repair Stations . | . . . . . . . . . Recycling Units . | . . . . . . . . . Scanalyzers . | . . . . . . . . . Garrison Access . | . . . . . . . . . Data Cores Recovered 1 | . . . 1 . . . . . Used . | . . . . . . . . . Hacking Detections 6 | . . . 3 . . . 2 1 Full Trace Events 2 | . . . 2 . . . . . Feedback Events . | . . . . . . . . . Feedback Blocked . | . . . . . . . . . Robot Schematics Acquired . | . . . . . . . . . Robots Built . | . . . . . . . . . Authchips . | . . . . . . . . . Time . | . . . . . . . . . Total Robot Build Rating . | . . . . . . . . . Part Schematics Acquired 1 | . . . 1 . . . . . Parts Built . | . . . . . . . . . Authchips . | . . . . . . . . . Time . | . . . . . . . . . Total Part Build Rating . | . . . . . . . . . Parts Repaired . | . . . . . . . . . Time . | . . . . . . . . . Parts Recycled . | . . . . . . . . . Recycled Matter . | . . . . . . . . . Retrieved Matter . | . . . . . . . . . Retrieved Components . | . . . . . . . . . Parts Scanalyzed . | . . . . . . . . . Part Schematics Acquired . | . . . . . . . . . Parts Damaged . | . . . . . . . . . Bothacking | -11 -10 -10 -9 -9 -9 -8 -8 -7 ------------ Run | Yrd Mat Min Mat Min Exi Min Mat Fac Used RIF Installer . | . . . . . . . . . Robots Hacked . | . . . . . . . . . Non-combat . | . . . . . . . . . Combat . | . . . . . . . . . Robot Hacks Applied . | . . . . . . . . . Relay Couplers Released . | . . . . . . . . . Fabnet Peak Effective % . | . . . . . . . . . Robots Rewired . | . . . . . . . . . Allies Hacked . | . . . . . . . . . Hacks Repelled . | . . . . . . . . . Allies | -11 -10 -10 -9 -9 -9 -8 -8 -7 -------- Run | Yrd Mat Min Mat Min Exi Min Mat Fac Total Allies 4 | . . . . 4 . . . . Largest Group 4 | . . . . 4 4 3 3 . Highest-Rated Group 71 | . . . . 71 71 40 40 . Highest-Rated Ally 31 | . . . . 31 31 16 16 . Total Orders . | . . . . . . . . . Ally Attacks 26 | . . . . 1 . . 25 . Total Damage 337 | . . . . 18 . . 319 . Kills 4 | . . . . . . . 4 . Allies Corrupted . | . . . . . . . . . Allies Melted . | . . . . . . . . . Intel | -11 -10 -10 -9 -9 -9 -8 -8 -7 ------- Run | Yrd Mat Min Mat Min Exi Min Mat Fac Robot Analysis Total . | . . . . . . . . . Derelict Logs Recovered 3 | . . 1 . 2 . . . . Drone Launches . | . . . . . . . . . Drone Recoveries . | . . . . . . . . . Exploration | -11 -10 -10 -9 -9 -9 -8 -8 -7 ------------- Run | Yrd Mat Min Mat Min Exi Min Mat Fac Turns Passed 6291 | 70 755 814 1356 1268 488 135 1217 188 Spaces Moved 2581 | 39 290 240 436 506 203 57 419 391 Core 3 | 3 . . . . . . . . Treads 2189 | 36 290 240 436 506 203 57 419 2 Legs . | . . . . . . . . . Wheels . | . . . . . . . . . Hover . | . . . . . . . . . Flight 389 | . . . . . . . . 389 Fastest Speed 28 | 50 160 320 240 240 240 240 232 28 Average Speed 212 | 154 214 320 240 240 240 240 243 31 Slowest Speed 320 | 160 320 320 240 320 240 240 250 308 Overloaded Moves . | . . . . . . . . . Propulsion Burnouts . | . . . . . . . . . Robots Hopped 1 | . . . . . . . . 1 Cave-ins Triggered . | . . . . . . . . . Exploration Rate (%) 44 | 4 48 64 43 99 55 27 44 14 Regions Visited 8 Branch Regions 4 Pre-discovered Areas 2 | . . 1 . . 1 . . . Known Exits Taken 1 | . . . . . . . 1 . Unknown Exits Taken 7 | 1 1 1 1 1 1 1 . . Scrap Searched 2 | . . 1 . 1 . . . . Spaces Dug 13 | . . . . . . . 3 10 Terrain Destroyed 95 | . . . . 23 . . 62 10 Melee 10 | . . . . . . . . 10 Projectile . | . . . . . . . . . AOE 85 | . . . . 23 . . 62 . Terrain Rammed . | . . . . . . . . . Walls Destroyed . | . . . . . . . . . Machines Disabled . | . . . . . . . . . Actions | -11 -10 -10 -9 -9 -9 -8 -8 -7 --------- Run | Yrd Mat Min Mat Min Exi Min Mat Fac Total 3051 | 46 367 265 602 536 205 56 536 438 Wait 106 | . 17 7 52 8 . . 22 . Move 2571 | 38 289 239 435 505 202 56 418 389 Hop 1 | . . . . . . . . 1 Pick Up 58 | 2 20 2 18 1 1 . 11 3 Fast Attach 19 | 6 1 . 1 1 . . 9 1 Attach 15 | . 1 . 3 . . . 1 10 Detach . | . . . . . . . . . Swap 38 | . 3 4 9 7 1 . 11 3 Drop 61 | . 7 2 10 3 1 . 21 17 Fire 168 | . 29 11 74 11 . . 43 . Melee 14 | . . . . . . . . 14 Ram . | . . . . . . . . . Kick . | . . . . . . . . . Crush . | . . . . . . . . . Escape Stasis . | . . . . . . . . . Rewire . | . . . . . . . . . Trap . | . . . . . . . . . Miscellaneous . | . . . . . . . . . Route ------- -11/Scrapyard -10/Materials (discovered 3 exits: *Mat / *Min x2) -10/Mines -9/Materials -9/Mines (discovered 4 exits: *Mat x2 / *Exi / [*Zio]) -9/Exiles -8/Mines -8/Materials -7/Factory History --------- Turn | Location | Event 7 | -11/Scrapyard | Discovered new exit (range 15) 71 | -11/Scrapyard | Entered Materials 313 | -10/Materials | Build established: Mutant 372 | -10/Materials | Discovered new exit (range 15) 455 | -10/Materials | Discovered new exit (range 15) 646 | -10/Materials | Discovered new exit (range 15) 826 | -10/Materials | Entered Mines 837 | -10/Mines | Found the Drone Emporium 852 | -10/Mines | Found Prototype Device 872 | -10/Mines | Identified Thief Drone Bay 1550 | -10/Mines | Learned location of Storage (-7) 1557 | -10/Mines | Discovered new exit (range 7) 1640 | -10/Mines | Entered Materials 1640 | -9/Materials | Evolved 2 slots: Propulsion x1, Utility x1 2314 | -9/Materials | Discovered new exit (range 15) 2996 | -9/Materials | Entered Mines 2997 | -9/Mines | Met a Derelict bent on vengeance 3068 | -9/Mines | Discovered new exit (range 6) 3119 | -9/Mines | Destroyed 7 combat bots 3266 | -9/Mines | A Derelict revealed a hidden shortcut to a safe place 3431 | -9/Mines | Assisted by bots powering up and referring to "LRC-V3" 3652 | -9/Mines | Joined a pair of Derelicts in attacking an 0b10 outpost 3840 | -9/Mines | Learned Materials stockpile data 3921 | -9/Mines | Discovered new exit (range 7) 4206 | -9/Mines | Received a Mining Laser from a helpful Derelict 4243 | -9/Mines | Deemed a non-threat by the Exiles lab entrance 4243 | -9/Mines | Discovered new exit (range 5) 4264 | -9/Mines | Entered Exiles 4264 | -9/Exiles | Accompanied by 4 allies 4320 | -9/Exiles | Met 8R-AWN 4363 | -9/Exiles | Met EX-HEX 4492 | -9/Exiles | Met EX-DEC 4591 | -9/Exiles | Learned location of Zion (-7) 4731 | -9/Exiles | Discovered new exit (range 10) 4752 | -9/Exiles | Entered Mines 4752 | -8/Mines | Accompanied by 3 allies 4870 | -8/Mines | Discovered new exit (range 7) 4887 | -8/Mines | Entered Materials 4887 | -8/Materials | Accompanied by 3 allies 4887 | -8/Materials | Evolved 2 slots: Propulsion x1, Utility x1 4888 | -8/Materials | Identified exit to Factory 6104 | -8/Materials | Entered Factory 6104 | -7/Factory | Evolved 2 slots: Propulsion x1, Utility x1 6292 | -7/Factory | Self-destructed Last Messages --------------- 06178_ Dropped Lgt. EM Pulse Cannon. 06178_ Acquired Imp. EM Pulse Cannon. 06178_ Dropped Imp. Flight Unit. 06179_ Acquired Lgt. EM Pulse Cannon. 06201_ Connecting with Terminal... >>Trojan(Botnet) Trojan loaded successfully. Testing... Terminal linked with 0 systems. Awaiting botnet instructions. 06206_ Triggered Alarm Trap. 06206_ An alarm sounds. 06206_ ALERT: Alarm triggered, dispatching investigation squad. 06221_ Dropped Imp. Flight Unit. 06222_ Acquired Xenon Bombardment Thruster. 06237_ U-05 Engineer builds a Wall. 06239_ K-01 Serf cleans the Construction Platform. 06252_ U-05 Engineer builds a Wall. Map ----- +----------------------------------------------------+ | # # """""" ## #[!] ##????????? | | # # """""" ## #[] ##????????? | | # # ## #[] [ ##????????? | | # # """""" ## "##############????????? | | # # """""" ## ###############????????? | | # # """""" ## ###############????????? | | # # """""" ## ###############????????? | | # # ## "! / ##????????? | | # # ## # [ [ ##????????? | | # ########### ^ # ##????????? | | # ########### # ##????????? | | # ###??????## # ##????????? | | + ##???????## # ##????????? | | # ##???????## + ##????????? | | # ##???????## # ##????????? | | # ##???????## # ##????????? | | + #####????## # ##????????? | | ####+########????## # | ##????????? | | ##????## # ##????????? | | " " " ##????## ;##############????????? | | =! " " " ##????## ###############????????? | | !! " " " ##????## ###????????????????????? | | !! " " " ##????## ##?????????????????????? | | " " " ##????## ##?????????????????????? | | " " " ##????## ###????????????????????? | | " " " ##????## @###????????????????????? | | " " "???????#####+###;##????????????????????? | | " " ???????? ##?????????????????? | | ! ????????????" ##?????????????????? | | ##########??????????""" / ##?????????????????? | | #####????????? """ ##?????????????????? | | ??????????????????? !! ##?????????????????? | | ??????????????????" """ ! ##?????????????????? | | ??????????????????" """ ##?????????????????? | | ??????????????????? """ "" "" ##?????????????????? | | ????????????????????? "F "" ##?????????????????? | | ???????????????????? """"" ##?????????????????? | | ????????????????????Y###########?????????????????? | | ????????????????????############?????????????????? | | ?????????????????????????????????????????????????? | | ?????????????????????????????????????????????????? | | ?????????????????????????????????????????????????? | | ?????????????????????????????????????????????????? | | ?????????????????????????????????????????????????? | | ?????????????????????????????????????????????????? | | ?????????????????????????????????????????????????? | | ?????????????????????????????????????????????????? | | ?????????????????????????????????????????????????? | | ?????????????????????????????????????????????????? | | ?????????????????????????????????????????????????? | +----------------------------------------------------+ Best States ------------- Heat Dissipation 42 Energy Generation 14 Energy Capacity 275 Matter Stores 300 Matter Capacity 300 Sight Range 16 Robot Scan Range 15 Terrain Scan Density 10 Armor Coverage 450 Evasion (%) 64 Targeting Accuracy 6 Recoil Reduction 4 Offensive Hacking 10 Item Schematics ----------------- Cargo Storage Unit | -9/Materials | Hacked Robot Schematics ------------------ None Fabricated ------------ Nothing Alien Tech Used ----------------- None Achievements -------------- None Challenges ------------ None Game ------ Seed ScatterHeavyRouter Manual? 0 Play Time 00:38:53 Cumulative 116.9 hours Start 2024.06.04 @ 13:11:19 End 2024.06.05 @ 12:57:52 Sessions 3 Manual Loads 0 Difficulty Rogue Special Mode None Game No. 153 Rogue 153 Adventurer 0 Explorer 0 Win Type - Total 1 Types 1/0/0/0/0/0/0/0/0 Lore% 49 Gallery% 53 Achievement% 50 Wizard Run 0 Options --------- Layout 1 ASCII 0 Keyboard 0 Movement Mouse Keybinds 0 Fullscreen 1 Font 32/SmallcapsGlow Map View 50x35 Zoom Use 0% Tactical HUD 1 Map Filters NONE Filters NONE Steam 1 RUN: d9e82a64-90bf-4045-925b-e4c2223991ad